bitfinex/quotes_SOLUSD_20250226
["timestamp","ask_amount","ask_price","bid_price","bid_amount"]
[1740573468691,89.7892223,138.06,138.02,20.0]
[1740573468900,88.3432,138.06,138.02,20.0]
[1740573470790,1.4460223,138.05,138.02,20.0]
[1740573470980,1.4460223,138.05,137.99,0.34732314]
[1740573471185,81.1,138.04,137.99,7.59392314]
[1740573471493,81.1,138.04,138.02,20.0]
[1740573472785,81.1,138.04,138.01,20.0]
[1740573472984,81.1,138.04,138.02,0.03]
[1740573475688,7.2443,138.04,138.02,0.03]
[1740573476682,8.6903223,138.04,138.02,0.03]
[1740573479077,7.2443,138.04,138.02,0.03]
[1740573479278,7.2437,138.05,138.02,0.03]
[1740573480697,1.4460223,138.04,138.02,0.03]
[1740573481397,7.2448,138.03,138.02,0.03]
[1740573483398,7.425,138.03,138.02,0.03]
[1740573487611,88.525,138.03,138.02,0.03]
[1740573493012,81.2802,138.03,138.02,0.03]
[1740573493313,81.2802,138.03,138.02,20.03]
[1740573493814,0.1802,138.03,138.02,20.03]
[1740573494396,0.1802,138.03,138.02,0.03]
[1740573494696,0.1802,138.03,138.02,0.31432314]
[1740573495513,0.1802,138.03,138.02,0.03]
[1740573499199,7.425,138.03,138.02,0.03]
[1740573500302,0.1802,138.03,138.02,0.03]
[1740573502826,0.1802,138.03,138.02,7.55962314]
[1740573503815,0.1802,138.03,138.02,20.31432314]
[1740573504021,0.1802,138.03,138.02,0.31432314]
[1740573504218,0.1802,138.03,138.02,20.03]
[1740573504420,7.425,138.03,138.02,0.03]
[1740573505710,15.6889,138.03,138.02,0.03]
[1740573505917,52.45054886,138.03,137.99,0.063]
[1740573506116,1.4460223,138.02,137.99,0.063]
[1740573506831,7.2458,138.01,137.99,0.063]
[1740573507015,1.4460223,138.0,137.99,0.063]
[1740573508335,26.8046223,138.02,137.99,0.063]
[1740573510011,8.6913223,138.02,137.99,0.063]
[1740573510427,82.959,138.03,137.99,0.063]
[1740573510622,81.3432,138.03,137.99,0.34732314]
[1740573510832,0.2432,138.03,138.0,20.0]
[1740573511866,7.488,138.03,138.0,20.0]
[1740573512158,0.2432,138.03,138.0,20.0]
[1740573512351,7.4881,138.03,137.99,0.063]
[1740573512550,1.4460223,138.02,137.99,0.063]
[1740573512737,82.5460223,138.02,137.99,0.063]
[1740573513269,0.2432,138.03,138.02,20.0]
[1740573513726,0.2432,138.03,138.0,20.0]
[1740573514049,0.2432,138.03,138.01,20.0]
[1740573515255,7.488,138.03,137.99,0.063]
[1740573515457,81.3432,138.03,138.0,20.0]
[1740573515950,88.5881,138.03,138.0,20.0]
[1740573516252,81.3432,138.03,138.0,20.0]
[1740573517356,0.2432,138.03,138.02,20.0]
[1740573517542,0.2432,138.03,138.02,20.56864628]
[1740573517734,0.2432,138.03,138.02,27.32864628]
[1740573518345,0.2432,138.03,138.02,34.57394628]
[1740573519570,0.2432,138.03,138.02,34.0053]
[1740573519737,0.2432,138.03,138.02,26.76]
[1740573520667,0.2432,138.03,138.02,6.76]
[1740573520870,0.2432,138.03,138.0,90.176]
[1740573522168,0.2432,138.03,138.0,0.03]
[1740573523232,81.1,138.02,138.0,0.03]
[1740573523433,81.1,138.01,138.0,0.03]
[1740573523659,88.3458,138.01,138.0,0.03]
[1740573524332,7.2458,138.01,138.0,0.03]
[1740573526055,1.4460223,138.02,138.0,0.03]
[1740573526864,1.6892223,138.03,138.0,0.03]
[1740573527443,81.3432,138.03,138.0,0.03]
[1740573529144,0.2432,138.03,138.0,0.03]
[1740573530354,0.2432,138.03,138.0,18.963972]
[1740573530552,0.2432,138.03,138.02,20.28432314]
[1740573531386,0.2432,138.03,138.02,20.56864628]
[1740573532454,0.2432,138.03,138.02,27.81394628]
[1740573533274,0.063,138.12,138.05,0.56864628]
[1740573533481,0.063,138.12,138.08,0.28432314]
[1740573534479,0.063,138.12,138.08,7.52632314]
[1740573539055,0.063,138.12,138.09,0.28432314]
[1740573539261,0.063,138.12,138.09,19.21829514]
[1740573540201,0.063,138.12,138.11,20.56864628]
[1740573540380,0.063,138.12,138.11,119.96901134]
[1740573540601,0.063,138.12,138.11,110.20864628]
[1740573540893,0.063,138.12,138.11,6.74]
[1740573541075,0.063,138.12,138.08,0.14216157]
[1740573541279,0.063,138.12,138.08,0.56864628]
[1740573541780,0.063,138.12,138.07,13.9821]
[1740573541972,0.063,138.12,138.08,0.14216157]
[1740573542356,0.063,138.12,138.08,0.28432314]
[1740573542964,0.063,138.12,138.08,7.52632314]
[1740573543885,0.063,138.12,138.1,0.28432314]
[1740573544468,0.063,138.12,138.1,20.28432314]
[1740573544670,0.063,138.12,138.1,0.28432314]
[1740573547390,0.063,138.12,138.1,7.52542314]
[1740573548774,0.063,138.13,138.12,1.56864628]
[1740573548986,0.063,138.17,138.14,47.45729514]
[1740573549187,0.063,138.17,138.16,19.21829514]
[1740573551263,0.063,138.17,138.16,26.45619514]
[1740573552173,0.063,138.17,138.16,160.51619514]
[1740573552588,0.063,138.17,138.16,134.34432314]
[1740573552886,0.063,138.17,138.16,134.06]
[1740573553077,1.7024,138.17,138.16,134.06]
[1740573555395,3.1484223,138.17,138.16,134.06]
[1740573555596,10.3858223,138.17,138.11,89.64]
[1740573555795,81.1,138.16,138.11,6.74]
[1740573555988,81.1,138.16,138.11,13.9805]
[1740573556374,1.7024,138.17,138.12,0.56864628]
[1740573556582,0.063,138.17,138.14,20.0]
[1740573557096,0.063,138.17,138.14,27.2387]
[1740573558387,0.063,138.17,138.14,20.0]
[1740573561593,0.063,138.17,138.15,0.42648471]
[1740573562493,0.063,138.17,138.15,7.66478471]
[1740573566315,0.063,138.17,138.16,0.14216157]
[1740573566603,0.063,138.17,138.16,108.85829514]
[1740573566786,0.063,138.17,138.16,109.85829514]
[1740573567181,1.6354,138.24,138.2,20.56864628]
[1740573567390,1.6354,138.24,138.21,20.0]
[1740573567721,0.063,138.24,138.22,0.42648471]
[1740573569787,0.063,138.24,138.23,0.14216157]
[1740573575999,0.063,138.24,138.18,353.14]
[1740573576204,0.063,138.24,138.18,216.94]
[1740573576510,1.614,138.23,138.18,134.04]
[1740573576711,1.614,138.23,138.19,0.42648471]
[1740573576893,1.614,138.23,138.2,0.14216157]
[1740573577095,0.063,138.24,138.2,0.14216157]
[1740573578510,15.2168223,138.24,138.19,0.42648471]
[1740573578892,15.2168223,138.24,138.19,0.28432314]
[1740573579490,81.1,138.23,138.18,134.24516157]
[1740573579697,15.2168223,138.24,138.18,134.103]
[1740573579698,82.5460223,138.22,138.18,134.103]
[1740573581209,7.2353,138.21,138.18,134.103]
[1740573581520,7.2353,138.21,138.18,0.063]
[1740573584895,1.6569,138.19,138.18,0.063]
[1740573585322,14.9111,138.19,138.18,0.063]
[1740573586507,7.6747,138.19,138.18,0.063]
[1740573586830,14.9111,138.19,138.18,0.063]
[1740573589440,1.6569,138.19,138.18,0.063]
[1740573589628,9.2109223,138.23,138.18,0.063]
[1740573590502,16.4455223,138.23,138.18,0.063]
[1740573591621,16.4755223,138.23,138.18,0.063]
[1740573594605,81.1,138.22,138.18,0.063]
[1740573597133,1.4460223,138.21,138.18,0.063]
[1740573597502,81.1,138.2,138.18,0.063]
[1740573597710,89.0430223,138.19,138.18,0.063]
[1740573599319,96.2794223,138.19,138.18,0.063]
[1740573601323,81.1,138.19,138.18,0.063]
[1740573601637,81.1,138.22,138.18,0.063]
[1740573601805,81.1,138.22,138.18,20.48948471]
[1740573602013,81.1,138.22,138.19,20.0]
[1740573603617,81.1,138.22,138.19,27.2363]
[1740573604719,1.2127747,138.22,138.2,0.42648471]
[1740573606718,1.2127747,138.22,138.2,7.66228471]
[1740573607834,1.2127747,138.22,138.21,19.21829514]
[1740573608138,1.2127747,138.22,138.21,108.85829514]
[1740573609534,1.2127747,138.22,138.21,116.09359514]
[1740573612345,1.2127747,138.22,138.21,97.44394628]
[1740573612546,1.2127747,138.22,138.21,13.9753]
[1740573612769,1.2127747,138.22,138.2,7.2356]
[1740573612935,1.2127747,138.22,138.18,0.063]
[1740573613124,1.2127747,138.22,138.18,0.34732314]
[1740573613544,1.2127747,138.22,138.18,7.2997]
[1740573614136,8.4475747,138.22,138.18,0.063]
[1740573614643,1.4460223,138.21,138.18,0.063]
[1740573614861,81.1,138.2,138.18,0.063]
[1740573615035,82.5460223,138.19,138.18,0.063]
[1740573615238,1.4460223,138.19,138.18,0.063]
[1740573615541,1.4460223,138.21,138.18,0.063]
[1740573615943,7.2358,138.2,138.18,0.063]
[1740573616127,1.5121,138.18,138.13,134.063]
[1740573616327,1.4460223,138.17,138.13,134.063]
[1740573616927,1.4460223,138.17,138.13,0.063]
[1740573617331,18.64964886,138.16,138.13,0.063]
[1740573617582,1.4460223,138.15,138.13,0.063]
[1740573618062,7.239,138.14,138.13,0.063]
[1740573621032,2.658797,138.15,138.13,0.063]
[1740573621230,81.1,138.14,138.13,0.063]
[1740573621433,2.658797,138.15,138.13,0.063]
[1740573621434,1.2127747,138.15,138.13,0.063]
[1740573624175,7.47e-05,138.15,138.14,19.21829514]
[1740573624467,0.03,138.22,138.18,0.42648471]
[1740573624664,0.03,138.22,138.19,7.2364]
[1740573625041,0.03,138.22,138.21,20.42648471]
[1740573626567,0.03,138.22,138.21,20.0]
[1740573626756,0.03,138.22,138.18,89.64]
[1740573626956,0.03,138.22,138.18,6.74]
[1740573627135,82.5760223,138.22,138.16,141.2778]
[1740573627564,82.5760223,138.22,138.19,20.0]
[1740573628277,82.5760223,138.22,138.16,134.04]
[1740573628434,7.2358,138.2,138.16,134.04]
[1740573628635,1.4460223,138.19,138.16,134.04]
[1740573628836,0.03,138.18,138.16,134.04]
[1740573630767,0.03,138.18,138.17,0.42648471]
[1740573632977,0.03,138.18,138.17,7.66388471]
[1740573633184,0.03,138.18,138.16,134.04]
[1740573633973,0.03,138.18,138.17,20.0]
[1740573634675,0.03,138.18,138.16,20.0]
[1740573635387,0.03,138.18,138.17,20.0]
[1740573638860,0.03,138.18,138.17,27.2374]
[1740573640367,0.03,138.18,138.17,27.80604628]
[1740573640690,0.03,138.18,138.17,136.07569514]
[1740573640860,0.03,138.18,138.17,137.07569514]
[1740573641061,0.03,138.22,138.21,0.42648471]
[1740573641284,0.03,138.22,138.21,0.56864628]
[1740573642295,0.03,138.22,138.21,90.70394628]
[1740573644271,0.03,138.22,138.21,109.35359514]
[1740573646091,0.03,138.22,138.21,83.32648471]
[1740573646466,0.03,138.22,138.21,90.56178471]
[1740573648216,0.03,138.22,138.21,7.66178471]
[1740573651720,0.03,138.22,138.18,134.043]
[1740573651926,0.03,138.22,138.19,0.42648471]
[1740573652096,0.03,138.22,138.19,0.28432314]
[1740573652704,0.03,138.22,138.2,0.28432314]
[1740573652908,0.03,138.22,138.21,20.42648471]
[1740573654099,0.03,138.22,138.21,20.0]
[1740573654410,0.03,138.22,138.21,27.2353]
[1740573655501,0.03,138.22,138.21,20.0]
[1740573655897,0.03,138.22,138.19,7.2362]
[1740573656102,0.03,138.22,138.18,216.943]
[1740573656308,81.13,138.22,138.18,134.043]
[1740573657109,81.13,138.22,138.18,141.2798]
[1740573659006,81.13,138.22,138.19,0.42648471]
[1740573660126,0.03,138.22,138.2,7.2358]
[1740573661144,0.03,138.22,138.21,0.56864628]
[1740573661434,0.03,138.22,138.21,7.14648471]
[1740573662039,0.03,138.22,138.21,14.38178471]
[1740573662813,0.03,138.22,138.21,14.52394628]
[1740573664640,0.03,138.22,138.21,33.17359514]
[1740573665431,0.03,138.22,138.21,116.07359514]
[1740573668240,0.063,138.24,138.23,0.56864628]
[1740573668842,0.063,138.24,138.23,83.46864628]
[1740573669037,0.063,138.24,138.23,90.70294628]
[1740573669943,0.063,138.24,138.23,83.46864628]
[1740573670511,0.063,138.24,138.23,82.9]
[1740573670716,1.5668,138.24,138.18,224.1797]
[1740573670915,3.0128223,138.24,138.18,216.943]
[1740573672839,1.5668,138.24,138.23,20.42648471]
[1740573673518,0.063,138.24,138.23,27.66078471]
[1740573674644,0.063,138.24,138.23,20.42648471]
[1740573675127,0.063,138.24,138.23,46.45259514]
[1740573675338,0.063,138.25,138.24,19.07613357]
[1740573675531,0.063,138.25,138.24,26.30983357]
[1740573676020,0.063,138.25,138.24,109.35199514]
[1740573676224,0.063,138.25,138.24,110.87042299]
[1740573676744,0.063,138.25,138.24,109.35199514]
[1740573677247,0.063,138.27,138.24,109.35199514]
[1740573677248,0.063,138.27,138.26,20.56864628]
[1740573677455,0.063,138.27,138.26,34.52134628]
[1740573678633,0.063,138.29,138.27,0.56864628]
[1740573678819,0.063,138.29,138.28,19.07613357]
[1740573679816,0.063,138.29,138.28,26.30783357]
[1740573681147,0.063,138.29,138.28,0.56864628]
[1740573681645,0.063,138.29,138.28,7.80034628]
[1740573681847,0.063,138.29,138.22,243.67299902]
[1740573682019,88.6949,138.28,138.21,10.79981287]
[1740573682214,88.6949,138.28,138.22,0.42648471]
[1740573682215,1.4460223,138.27,138.22,0.42648471]
[1740573682419,88.6949,138.28,138.22,0.56864628]
[1740573682642,1.4460223,138.27,138.21,7.2351]
[1740573683047,8.6785223,138.27,138.2,18.64964886]
[1740573683846,1.4460223,138.27,138.2,18.64964886]
[1740573684158,8.6782223,138.27,138.21,0.56864628]
[1740573684348,1.4460223,138.27,138.21,0.56864628]
[1740573685135,8.6783223,138.27,138.22,7.2348]
[1740573685336,81.1,138.26,138.18,224.1797]
[1740573685540,81.1,138.26,138.18,141.2798]
[1740573685541,1.4460223,138.25,138.18,141.2798]
[1740573686047,1.5174,138.24,138.18,141.2798]
[1740573686274,82.5460223,138.23,138.18,141.2798]
[1740573686960,82.5460223,138.23,138.21,0.063]
[1740573688559,0.03,138.27,138.22,20.56864628]
[1740573689255,0.03,138.27,138.23,7.2343]
[1740573690567,0.03,138.27,138.22,27.80334628]
[1740573690758,0.03,138.27,138.22,7.80334628]
[1740573691852,0.03,138.27,138.22,44.54009514]
[1740573693231,0.03,138.27,138.24,0.14216157]
[1740573693438,0.03,138.27,138.22,7.2348]
[1740573693667,0.03,138.27,138.23,0.42648471]
[1740573693964,1.4460223,138.26,138.22,7.2348]
[1740573694162,1.4460223,138.26,138.21,89.683]
[1740573694640,81.1,138.25,138.21,0.063]
[1740573694838,1.5899,138.23,138.21,0.063]
[1740573695033,88.6786223,138.22,138.21,0.063]
[1740573695436,95.9134223,138.22,138.21,0.063]
[1740573698641,14.8134223,138.22,138.21,0.063]
[1740573699166,1.0,138.21,138.18,0.063]
[1740573699364,1.5704,138.19,138.18,0.063]
[1740573699553,6.0031,138.18,138.13,0.063]
[1740573699754,1.4460223,138.17,138.13,0.063]
[1740573701077,7.4491223,138.18,138.13,7.3024]
[1740573701283,6.0031,138.18,138.14,0.42648471]
[1740573702482,1.5704,138.19,138.14,0.42648471]
[1740573703368,1.5704,138.19,138.15,7.2385]
[1740573704178,6.3788,138.21,138.16,0.42648471]
[1740573704353,87.4788,138.21,138.16,0.42648471]
[1740573704747,88.9248223,138.21,138.16,0.42648471]
[1740573705280,88.9248223,138.21,138.17,7.2374]
[1740573705976,87.4788,138.21,138.17,7.2374]
[1740573709696,82.5460223,138.2,138.13,0.063]
[1740573709863,81.1,138.19,138.13,7.3023]
[1740573710063,1.4460223,138.18,138.13,7.3023]
[1740573710473,1.6659,138.17,138.13,0.063]
[1740573710772,82.5460223,138.16,138.13,0.063]
[1740573711594,6.0715,138.14,138.13,0.063]
[1740573711795,27.16717116,138.14,138.09,133.96]
[1740573712081,82.7559,138.13,138.08,0.063]
[1740573712284,1.4460223,138.12,138.08,0.063]
[1740573713276,81.1,138.11,138.08,0.063]
[1740573713477,82.5460223,138.1,138.08,0.063]
[1740573713666,89.7875223,138.1,138.08,0.063]
[1740573714789,81.1,138.09,138.08,0.063]
[1740573715163,8.0799,138.09,138.08,0.063]
[1740573715415,14.7999,138.09,138.07,0.063]
[1740573715573,1.4460223,138.08,138.07,0.063]
[1740573716883,20.09567116,138.08,138.07,0.063]
[1740573717088,19.933972,138.05,138.04,0.063]
[1740573717273,7.3327,138.04,138.01,0.063]
[1740573717470,1.4460223,138.03,138.01,0.063]
[1740573718270,9.1660223,138.03,138.01,0.063]
[1740573718491,8.1660223,138.03,138.01,0.063]
[1740573718894,9.1660223,138.03,138.01,0.063]
[1740573720277,2.4460223,138.03,138.01,0.063]
[1740573720477,106.46964886,138.02,138.01,0.063]
[1740573720698,25.36964886,138.02,138.01,0.063]
[1740573721078,8.1660223,138.03,138.01,0.063]
[1740573722393,9.1660223,138.03,138.01,0.063]
[1740573722685,9.1660223,138.03,137.99,0.063]
[1740573722686,19.64964886,138.02,137.99,0.063]
[1740573722890,1.4460223,138.01,137.99,0.063]
[1740573723116,20.09567116,138.01,137.99,0.063]
[1740573723322,23.0462943,138.01,137.99,0.063]
[1740573724207,19.933972,138.0,137.99,0.063]
[1740573724386,18.64964886,138.0,137.99,0.063]
[1740573724590,6.82805802,138.01,137.99,0.063]
[1740573724808,0.28432314,138.0,137.99,0.063]
[1740573725012,2.28432314,138.0,137.99,0.063]
[1740573725445,6.1857,137.99,137.97,0.03]
[1740573725621,26.81567116,137.98,137.97,0.03]
[1740573725919,26.81567116,137.98,137.94,0.063]
[1740573725920,18.64964886,137.96,137.94,0.063]
[1740573726120,1.4460223,137.95,137.94,0.063]
[1740573727096,1.4460223,137.96,137.94,0.063]
[1740573727618,20.09567116,137.96,137.94,0.063]
[1740573728214,99.74964886,137.95,137.94,0.063]
[1740573728603,20.28432314,137.88,137.87,0.063]
[1740573728803,1.0,137.85,137.75,182.38804523]
[1740573729007,15.8646223,137.88,137.75,182.38804523]
[1740573729008,1.0,137.82,137.75,182.38804523]
[1740573729210,89.2660223,137.81,137.75,182.38804523]
[1740573729414,81.1,137.8,137.75,182.38804523]
[1740573729624,7.6641,137.78,137.75,182.38804523]
[1740573729809,1.4460223,137.77,137.75,182.38804523]
[1740573730133,81.1,137.78,137.75,192.60526241]
[1740573730294,1.4460223,137.77,137.75,185.34576241]
[1740573730633,1.4460223,137.79,137.75,185.34576241]
[1740573730798,1.4460223,137.79,137.75,182.38804523]
[1740573731419,1.4460223,137.79,137.75,0.2]
[1740573731798,1.4460223,137.79,137.75,7.4593]
[1740573732131,1.4460223,137.82,137.78,20.0]
[1740573732509,1.4460223,137.82,137.79,20.0]
[1740573733006,82.1,137.81,137.75,0.2]
[1740573733317,101.19567116,137.8,137.75,0.2]
[1740573733524,81.1,137.79,137.75,0.2]
[1740573733819,1.4460223,137.78,137.75,0.2]
[1740573734020,82.5460223,137.85,137.76,20.0]
[1740573734222,1.4460223,137.83,137.79,0.28432314]
[1740573734415,1.4460223,137.84,137.79,0.28432314]
[1740573734612,1.4460223,137.84,137.78,20.0]
[1740573734933,1.4460223,137.84,137.78,27.2578]
[1740573735445,82.5460223,137.85,137.82,20.0]
[1740573736010,81.1,137.85,137.82,20.0]
[1740573736743,1.4460223,137.84,137.8,7.2568]
[1740573736944,1.4460223,137.84,137.83,20.0]
[1740573737150,81.1,137.85,137.83,20.0]
[1740573739146,81.1,137.85,137.83,27.2552]
[1740573740236,81.1,137.88,137.83,27.2552]
[1740573740474,82.5460223,137.87,137.83,27.2552]
[1740573741547,81.1,137.87,137.84,0.28432314]
[1740573742736,81.1,137.87,137.83,52.2334]
[1740573744547,82.5460223,137.86,137.83,20.0]
[1740573744844,82.5460223,137.86,137.78,7.2579]
[1740573744845,81.1,137.85,137.78,7.2579]
[1740573745145,82.5460223,137.84,137.81,20.0]
[1740573745347,81.1,137.83,137.81,20.0]
[1740573745846,82.5460223,137.82,137.78,7.2579]
[1740573746543,82.5460223,137.82,137.8,0.03]
[1740573746745,82.5460223,137.82,137.81,20.0]
[1740573747444,1.4460223,137.82,137.81,20.0]
[1740573747629,1.4460223,137.85,137.81,20.0]
[1740573749047,19.933972,137.84,137.8,0.03]
[1740573749354,1.4460223,137.83,137.8,0.03]
[1740573749723,19.933972,137.82,137.8,0.03]
[1740573749923,20.09567116,137.81,137.8,0.03]
[1740573750129,18.64964886,137.79,137.75,0.23]
[1740573750337,1.4460223,137.78,137.75,0.23]
[1740573750719,18.64964886,137.77,137.75,0.23]
[1740573750930,1.4460223,137.76,137.75,0.23]
[1740573752048,18.64964886,137.78,137.75,0.23]
[1740573752253,1.4460223,137.77,137.75,0.23]
[1740573752461,15.5261,137.8,137.75,0.23]
[1740573752462,20.09567116,137.79,137.75,0.23]
[1740573753725,1.4460223,137.79,137.75,0.23]
[1740573754037,1.4460223,137.79,137.75,7.4893]
[1740573756854,81.1,137.78,137.75,7.4893]
[1740573757547,82.5460223,137.77,137.75,0.23]
[1740573757748,81.1,137.76,137.75,0.23]
[1740573758435,0.28432314,137.76,137.75,0.23]
[1740573758649,1.0,137.75,137.73,2.0838483]
[1740573758959,102.4799943,137.74,137.73,2.0838483]
[1740573759129,21.3799943,137.74,137.73,2.0838483]
[1740573759328,28.6399943,137.74,137.73,2.0838483]
[1740573759963,27.35567116,137.74,137.73,2.0838483]
[1740573760262,1.56864628,137.67,137.66,0.03]
[1740573760461,8.50818387,137.67,137.66,0.03]
[1740573760625,1.4460223,137.67,137.66,0.03]
[1740573760832,6.92,137.69,137.66,0.03]
[1740573761031,1.4460223,137.68,137.66,0.03]
[1740573761530,1.4460223,137.7,137.66,20.03]
[1740573762037,1.4460223,137.7,137.62,6.7962]
[1740573762229,1.4460223,137.7,137.65,20.0]
[1740573763131,18.64964886,137.71,137.65,20.0]
[1740573763335,1.4460223,137.7,137.65,20.0]
[1740573764448,1.4460223,137.71,137.65,20.0]
[1740573765841,20.09567116,137.71,137.64,27.2652]
[1740573766138,20.09567116,137.71,137.66,20.0]
[1740573766443,18.64964886,137.7,137.66,20.0]
[1740573766756,1.4460223,137.69,137.62,7.266]
[1740573766970,1.4460223,137.69,137.65,20.0]
[1740573767663,20.09567116,137.7,137.63,20.0]
[1740573767861,20.09567116,137.7,137.65,20.0]
[1740573768256,1.4460223,137.7,137.65,20.0]
[1740573768768,1.4460223,137.71,137.65,20.0]
[1740573769944,1.4460223,137.71,137.66,7.2642]
[1740573770154,1.4460223,137.71,137.69,20.0]
[1740573770347,81.1,137.72,137.69,20.0]
[1740573771766,81.1,137.72,137.7,7.2621]
[1740573771967,82.5460223,137.74,137.7,7.2621]
[1740573772273,81.1,137.74,137.7,7.2621]
[1740573772472,82.5460223,137.77,137.7,25.4175]
[1740573772772,81.1,137.76,137.7,25.4175]
[1740573773273,81.1,137.76,137.73,20.0]
[1740573774072,81.1,137.76,137.73,27.2603]
[1740573774261,1.4460223,137.75,137.73,27.2603]
[1740573774578,82.5460223,137.75,137.71,20.0]
[1740573774867,82.5460223,137.75,137.68,7.2632]
[1740573776076,89.4260223,137.75,137.68,7.2632]
[1740573776872,89.4260223,137.75,137.69,0.28432314]
[1740573777666,89.4260223,137.75,137.68,25.4212]
[1740573777986,89.4260223,137.75,137.68,7.2632]
[1740573778362,81.1,137.74,137.65,7.2648]
[1740573778552,1.4460223,137.73,137.65,7.2648]
[1740573779255,1.4460223,137.73,137.66,0.28432314]
[1740573779456,1.4460223,137.73,137.66,18.933972]
[1740573779860,1.4460223,137.73,137.68,0.28432314]
[1740573780061,82.5460223,137.74,137.69,7.2626]
[1740573781681,82.5460223,137.74,137.66,7.2642]
[1740573782678,82.6090223,137.74,137.66,7.2642]
[1740573782850,81.1,137.73,137.66,7.2642]
[1740573783056,7.614,137.71,137.64,7.40746157]
[1740573783279,89.4060223,137.7,137.64,7.2653]
[1740573783882,81.1,137.69,137.64,7.2653]
[1740573784186,81.1,137.69,137.65,0.28432314]
[1740573784681,81.1,137.69,137.66,7.2642]
[1740573785572,82.5460223,137.69,137.66,7.2642]
[1740573785963,82.5460223,137.69,137.62,82.93]
[1740573786277,82.5460223,137.69,137.65,20.0]
[1740573786577,82.5460223,137.69,137.65,27.2646]
[1740573787079,81.1,137.68,137.63,7.2658]
[1740573787266,82.5460223,137.67,137.63,7.2658]
[1740573788293,82.5460223,137.67,137.62,7.2963]
[1740573788653,82.5460223,137.67,137.62,0.03]
[1740573789589,82.0460223,137.67,137.62,0.03]
[1740573789765,80.6,137.66,137.62,0.03]
[1740573789960,8.2860223,137.65,137.62,0.03]
[1740573790499,8.2023,137.64,137.62,0.03]
[1740573790686,1.4460223,137.63,137.62,0.03]
[1740573791291,1.4460223,137.63,137.59,0.17507289]
[1740573791460,9.0318,137.62,137.53,7.2711]
[1740573791662,1.4460223,137.61,137.53,7.2711]
[1740573791878,6.86,137.6,137.53,7.2711]
[1740573792064,6.86,137.6,137.54,0.14216157]
[1740573792273,6.86,137.6,137.54,0.28432314]
[1740573792581,6.86,137.6,137.53,25.4489]
[1740573792885,6.86,137.6,137.54,0.75505903]
[1740573793085,1.4460223,137.61,137.55,0.28432314]
[1740573793254,1.4460223,137.6,137.56,20.0]
[1740573793454,1.4460223,137.6,137.57,0.67458749]
[1740573793681,1.4460223,137.6,137.54,0.28432314]
[1740573793981,1.4460223,137.6,137.53,108.3489]
[1740573794187,1.4460223,137.6,137.53,25.4489]
[1740573794372,1.4460223,137.61,137.53,7.2711]
[1740573794759,1.4460223,137.61,137.53,18.79181043]
[1740573794960,1.4460223,137.61,137.54,0.28432314]
[1740573795160,1.4460223,137.61,137.55,20.0]
[1740573795590,1.4460223,137.61,137.53,0.28432314]
[1740573795782,1.4460223,137.61,137.52,7.2716]
[1740573795968,2.4460223,137.61,137.52,7.2716]
[1740573796167,1.4460223,137.61,137.52,7.2716]
[1740573796473,2.4460223,137.61,137.52,7.2716]
[1740573796875,2.4460223,137.61,137.5,7.2727]
[1740573796876,2.0,137.6,137.5,7.2727]
[1740573797181,1.4460223,137.59,137.51,0.21346638]
[1740573797388,6.88,137.58,137.5,7.2727]
[1740573797574,1.4460223,137.57,137.5,7.2727]